bitfinex/quotes_BTCUSD_20251011
["timestamp","ask_amount","ask_price","bid_price","bid_amount"]
[1760141917896,0.09923,112100.0,112040.0,0.3701519]
[1760141918099,0.28056388,112100.0,112050.0,0.22595055]
[1760141918345,0.17822529,112110.0,112060.0,0.0301519]
[1760141918678,0.002,112120.0,112080.0,0.0301519]
[1760141918881,0.002,112120.0,112110.0,0.0785619]
[1760141919086,0.02412056,112210.0,112110.0,0.60606244]
[1760141919284,0.02412056,112210.0,112120.0,0.09004]
[1760141919285,0.18716633,112200.0,112120.0,0.09004]
[1760141919488,0.00891345,112190.0,112120.0,0.09004]
[1760141919676,0.17830199,112180.0,112130.0,0.11765245]
[1760141919885,0.0251518,112190.0,112150.0,0.11765245]
[1760141920013,0.00050673,112210.0,112180.0,0.38841]
[1760141920411,0.00891265,112200.0,112160.0,0.09004]
[1760141920625,0.18716671,112200.0,112140.0,0.43004]
[1760141920835,0.00891265,112200.0,112150.0,0.08750055]
[1760141921036,0.18718112,112200.0,112160.0,0.0301519]
[1760141921242,0.18719071,112190.0,112130.0,0.04841]
[1760141921442,0.18719071,112190.0,112130.0,0.13591055]
[1760141921443,0.00891503,112170.0,112130.0,0.13591055]
[1760141921655,0.19944959,112190.0,112140.0,0.08750055]
[1760141921806,0.14343301,112190.0,112140.0,0.17754055]
[1760141922018,0.18722112,112200.0,112150.0,0.1201919]
[1760141922019,0.0251518,112180.0,112150.0,0.1201919]
[1760141922229,4e-05,112200.0,112160.0,0.17754055]
[1760141922400,4e-05,112200.0,112170.0,0.0301519]
[1760141922598,0.00054673,112200.0,112170.0,0.09004]
[1760141922830,0.00891345,112190.0,112150.0,0.1201919]
[1760141923029,0.18771692,112200.0,112150.0,0.0311519]
[1760141923229,0.00054673,112200.0,112160.0,0.1201919]
[1760141923581,0.04462787,112190.0,112140.0,0.34]
[1760141923781,0.17828489,112180.0,112170.0,0.001]
[1760141924064,0.00891345,112190.0,112120.0,0.09004]
[1760141924316,0.187183,112190.0,112140.0,0.43004]
[1760141924521,0.00891424,112180.0,112130.0,0.11765245]
[1760141924726,0.02321863,112190.0,112140.0,0.34]
[1760141924929,0.152743,112180.0,112140.0,0.34]
[1760141925133,0.152743,112180.0,112130.0,0.09004]
[1760141925340,0.1760742,112190.0,112140.0,0.09004]
[1760141925545,0.18703825,112180.0,112170.0,0.001]
[1760141925701,0.17668795,112180.0,112170.0,0.001]
[1760141925905,0.16084698,112180.0,112170.0,0.001]
[1760141926332,0.15066298,112180.0,112170.0,0.001]
[1760141926718,0.19446641,112180.0,112170.0,0.001]
[1760141926958,0.52718284,112190.0,112180.0,0.12112779]
[1760141927161,0.18718284,112190.0,112180.0,0.12112779]
[1760141927380,0.17829223,112180.0,112120.0,0.34]
[1760141927585,0.17829223,112180.0,112130.0,0.0301519]
[1760141927819,0.18820647,112180.0,112130.0,0.1201919]
[1760141928074,0.18720647,112180.0,112130.0,0.1201919]
[1760141928312,0.1872164,112170.0,112130.0,0.1201919]
[1760141928739,0.18719973,112180.0,112140.0,0.09004]
[1760141928945,0.21192973,112180.0,112140.0,0.09004]
[1760141929370,0.02473,112180.0,112140.0,0.09004]
[1760141929785,0.20301592,112180.0,112140.0,0.09004]
[1760141930142,0.02473,112180.0,112140.0,0.09004]
[1760141930346,0.21193263,112180.0,112140.0,0.09004]
[1760141930525,0.17830388,112170.0,112130.0,0.0785619]
[1760141930727,0.20268891,112170.0,112130.0,0.0785619]
[1760141930927,0.01547,112170.0,112130.0,0.0785619]
[1760141931625,0.21197263,112180.0,112150.0,0.0301519]
[1760141931626,4e-05,112180.0,112150.0,0.0301519]
[1760141931974,4e-05,112180.0,112170.0,0.0489]
[1760141932435,4e-05,112180.0,112170.0,0.0301519]
[1760141932592,4e-05,112180.0,112170.0,0.1781519]
[1760141932969,0.18724794,112180.0,112140.0,0.3701519]
[1760141933173,0.01547,112170.0,112140.0,0.34]
[1760141933489,0.01547,112170.0,112130.0,0.14751]
[1760141933883,0.01547,112170.0,112140.0,0.0991]
[1760141934079,0.07,112160.0,112140.0,0.0991]
[1760141934282,0.07,112160.0,112150.0,0.0301519]
[1760141934696,0.18723772,112200.0,112150.0,0.0301519]
[1760141934894,0.04885345,112190.0,112160.0,0.00035894]
[1760141935074,0.03994,112190.0,112150.0,0.0301519]
[1760141935275,4e-05,112170.0,112150.0,0.0301519]
[1760141935472,4e-05,112170.0,112150.0,0.1781519]
[1760141935942,0.17823753,112210.0,112160.0,0.0991]
[1760141936142,0.00906379,112210.0,112150.0,0.16655245]
[1760141936405,0.00015193,112210.0,112170.0,0.0991]
[1760141936588,0.17839038,112210.0,112170.0,0.0991]
[1760141936771,0.00015193,112210.0,112170.0,0.0991]
[1760141937204,0.00015193,112210.0,112160.0,0.34]
[1760141937375,0.00906379,112210.0,112160.0,0.21675245]
[1760141937718,0.00019193,112210.0,112170.0,0.0991]
[1760141937893,0.00019193,112210.0,112160.0,0.34]
[1760141937894,0.17826269,112200.0,112160.0,0.34]
[1760141938097,0.21345613,112210.0,112160.0,0.4391]
[1760141938267,0.21345613,112210.0,112160.0,0.42750055]
[1760141938268,0.00910379,112210.0,112160.0,0.42750055]
[1760141938620,0.18717676,112200.0,112160.0,0.0301519]
[1760141938834,0.18718332,112190.0,112150.0,0.0489]
[1760141939277,0.18719923,112180.0,112150.0,0.0489]
[1760141939502,0.18718332,112190.0,112150.0,0.148]
[1760141939903,0.00891424,112180.0,112130.0,0.04841]
[1760141940111,0.18720077,112180.0,112140.0,0.0991]
[1760141940464,0.18734565,112210.0,112150.0,0.26565245]
[1760141940671,0.00891265,112200.0,112150.0,0.26565245]
[1760141941016,0.21271923,112210.0,112160.0,0.0991]
[1760141941137,0.18717205,112200.0,112160.0,0.0991]
[1760141941339,0.00891503,112170.0,112140.0,0.34]
[1760141941540,0.00891583,112160.0,112120.0,0.0489]
[1760141941741,0.18725218,112150.0,112120.0,0.148]
[1760141941971,0.00891981,112110.0,112070.0,0.2041967]
[1760141942168,0.00891981,112110.0,112070.0,0.01899311]
[1760141942169,0.1873353,112100.0,112070.0,0.01899311]
[1760141942430,0.17844396,112080.0,112070.0,0.01899311]
[1760141942833,0.17847581,112060.0,112040.0,0.02387152]
[1760141943039,0.17849174,112050.0,112040.0,0.0002]
[1760141943316,0.2009809,112050.0,112040.0,0.0002]
[1760141943516,0.17849174,112050.0,112040.0,0.0002]
[1760141944166,0.17849174,112050.0,112040.0,0.00070673]
[1760141944569,0.17949174,112050.0,112040.0,1e-08]
[1760141944844,0.56699447,112050.0,112040.0,1e-08]
[1760141945247,0.54371511,112050.0,112040.0,1e-08]
[1760141945674,0.54375511,112050.0,112040.0,1e-08]
[1760141945971,0.5443135,112050.0,112040.0,1e-08]
[1760141946129,0.56144547,112050.0,112040.0,1e-08]
[1760141946330,0.17957174,112050.0,112040.0,1e-08]
[1760141946504,0.17857174,112050.0,112040.0,1e-08]
[1760141946692,0.20474211,112050.0,112040.0,1e-08]
[1760141946892,0.51855548,112010.0,112000.0,4.71703204]
[1760141947100,0.78263512,112010.0,112000.0,4.0064264]
[1760141947294,0.72876721,112010.0,112000.0,3.83338748]
[1760141947501,0.80508784,112010.0,112000.0,3.55581554]
[1760141947701,0.70508785,112010.0,112000.0,3.42105054]
[1760141947938,0.82293923,112010.0,112000.0,3.25234654]
[1760141948146,0.79616007,112010.0,112000.0,2.8321264]
[1760141948354,0.76917374,112010.0,112000.0,2.71739753]
[1760141948560,0.78278187,112010.0,112000.0,2.49278303]
[1760141948829,0.78282187,112010.0,112000.0,2.36568335]
[1760141949078,0.67393092,112010.0,112000.0,2.28837353]
[1760141949226,0.31786029,112010.0,112000.0,2.11861556]
[1760141949432,0.37501218,112010.0,112000.0,1.65760991]
[1760141949660,0.81305217,112010.0,112000.0,1.60307963]
[1760141949938,0.81355436,112010.0,112000.0,1.5603064]
[1760141950134,0.81655436,112010.0,112000.0,0.89506706]
[1760141950437,0.79636484,112010.0,112000.0,0.42727877]
[1760141950811,0.79043548,112010.0,112000.0,0.12878704]
[1760141951035,0.7827599,112010.0,112000.0,0.09173741]
[1760141951240,1.08268775,111980.0,111970.0,1e-08]
[1760141951389,0.5786831,111930.0,111920.0,0.002]
[1760141951728,0.5786831,111930.0,111920.0,1e-08]
[1760141952070,0.19869764,111930.0,111920.0,1e-08]
[1760141952271,0.66869764,111930.0,111920.0,1e-08]
[1760141952471,0.66884907,111930.0,111920.0,1e-08]
[1760141952670,0.24883453,111930.0,111920.0,1e-08]
[1760141953493,0.26750665,111930.0,111920.0,1e-08]
[1760141953700,0.66750665,111930.0,111920.0,1e-08]
[1760141953905,0.26750665,111930.0,111920.0,1e-08]
[1760141954334,0.66750665,111930.0,111920.0,1e-08]
[1760141954579,0.24983453,111930.0,111920.0,1e-08]
[1760141955502,0.00115143,111930.0,111920.0,1e-08]
[1760141955713,0.18753348,111980.0,111930.0,0.3701519]
[1760141955911,0.00015177,111980.0,111940.0,0.00202465]
[1760141956081,0.1786831,111930.0,111920.0,1e-08]
[1760141956286,0.17867925,111940.0,111920.0,1e-08]
[1760141956489,0.18760828,111980.0,111930.0,0.11765245]
[1760141956689,0.18756153,111990.0,111950.0,0.3701519]
[1760141957047,0.17860406,111980.0,111960.0,0.0301519]
[1760141957229,0.17860406,111980.0,111920.0,1e-08]
[1760141957230,0.18758409,111950.0,111920.0,1e-08]
[1760141957385,0.17875583,111980.0,111940.0,0.0301519]
[1760141957586,0.00015177,111980.0,111970.0,0.04517]
[1760141957812,0.00015177,111980.0,111970.0,0.3701519]
[1760141958013,0.00012,112010.0,111970.0,0.55397245]
[1760141958245,0.00012,112010.0,111980.0,0.59914245]
[1760141958601,0.00012,112010.0,111990.0,0.09632]
[1760141958941,0.00012,112010.0,111980.0,0.50282245]
[1760141958942,0.18753978,111980.0,111930.0,0.09672095]
[1760141959141,0.00893096,111970.0,111940.0,0.25914245]
[1760141959342,0.18804548,111980.0,111950.0,0.09632]
[1760141959343,0.0005057,111980.0,111950.0,0.09632]
[1760141959578,0.17911374,111980.0,111960.0,0.34]
[1760141959780,0.00943586,111980.0,111950.0,0.34]
[1760141959983,0.23753172,112000.0,111970.0,0.04517]
[1760141959984,0.01935567,112000.0,111970.0,0.04517]
[1760141960188,0.00892936,111990.0,111960.0,0.08750055]
[1760141960399,0.23725651,112000.0,111960.0,0.09632]
[1760141960400,0.02034712,112000.0,111960.0,0.09632]
[1760141960604,0.21260764,112010.0,111970.0,0.14149]
[1760141961025,0.0495,112000.0,111960.0,0.04517]
[1760141961237,0.0495,112000.0,111940.0,0.14149]
[1760141961238,0.1875193,111990.0,111940.0,0.14149]
[1760141961436,0.21255663,111970.0,111940.0,0.04517]
[1760141961635,0.025,111970.0,111940.0,0.14149]
[1760141961928,0.025,111970.0,111920.0,1e-08]
[1760141961929,0.00893255,111950.0,111920.0,1e-08]
[1760141962193,0.18758659,111950.0,111920.0,0.08750056]
[1760141962397,0.24714371,111940.0,111920.0,1e-08]
[1760141962596,0.1786831,111930.0,111920.0,1e-08]
[1760141962799,0.08747677,111940.0,111920.0,1e-08]
[1760141963000,0.03404777,112010.0,111940.0,0.34]
[1760141963147,0.16554236,112000.0,111960.0,0.0301519]
[1760141963352,0.16554236,112000.0,111980.0,0.0301519]
[1760141963575,0.16554236,112000.0,111980.0,0.21397245]
[1760141963776,0.16554236,112000.0,111990.0,0.03104318]
[1760141964197,0.16554236,112000.0,111990.0,0.11854373]
[1760141964434,0.16554236,112000.0,111990.0,0.0301519]
[1760141964560,0.14150849,112000.0,111990.0,0.0301519]
[1760141964761,0.14150849,112000.0,111970.0,0.0121609]
[1760141965001,0.14150849,112000.0,111980.0,0.08750055]
[1760141966133,0.14150849,112000.0,111990.0,0.13267055]
[1760141966134,0.12357239,112000.0,111990.0,0.13267055]
[1760141966478,0.10536581,112000.0,111990.0,0.13267055]
[1760141966684,0.10536581,112000.0,111990.0,0.25914245]
[1760141966880,0.10536581,112000.0,111970.0,0.1084809]
[1760141967106,0.178572,112000.0,111980.0,0.08750055]
[1760141967335,0.25550682,111990.0,111930.0,0.04517]
[1760141967554,0.06799009,111990.0,111940.0,0.18382055]
[1760141967907,0.04713,111990.0,111950.0,0.22899055]
[1760141968125,0.27090816,111990.0,111960.0,0.4664719]
[1760141968342,0.45843,111990.0,111960.0,0.42750055]
[1760141968556,0.57622,111990.0,111960.0,0.42750055]
[1760141968786,0.17860339,111980.0,111960.0,0.42750055]
[1760141969011,0.27090816,111990.0,111970.0,0.18382055]
[1760141969659,0.27090816,111990.0,111980.0,0.09632]
[1760141969895,0.27090816,111990.0,111980.0,0.18382055]
[1760141970465,0.27090816,111990.0,111980.0,0.09632]
[1760141970707,0.27090816,111990.0,111980.0,0.11765245]
[1760141970900,0.27090816,111990.0,111980.0,0.55397245]
[1760141971832,0.25948012,111990.0,111980.0,0.55397245]
[1760141971953,0.25948012,111990.0,111980.0,0.09632]
[1760141972194,0.44699708,111990.0,111950.0,0.14149]
[1760141972411,0.18429788,111980.0,111950.0,0.00046973]
[1760141972636,0.16551843,111980.0,111950.0,0.00046973]
[1760141972849,0.13158165,111980.0,111950.0,0.00046973]
[1760141973054,0.44699708,111990.0,111950.0,0.08797028]
[1760141973267,0.31911535,111980.0,111950.0,0.00046973]
[1760141973526,0.14051181,111980.0,111950.0,0.00046973]
[1760141973728,0.22832606,111980.0,111950.0,0.00046973]
[1760141973956,0.08812106,111960.0,111950.0,0.00046973]
[1760141974150,0.26675628,111960.0,111950.0,0.00046973]
[1760141974349,0.37514716,111960.0,111950.0,0.00046973]
[1760141974552,0.08812106,111960.0,111950.0,0.00046973]
[1760141974754,0.32545441,111980.0,111950.0,0.00046973]
[1760141974952,0.04099106,111970.0,111950.0,0.00046973]
[1760141975362,0.20553687,111990.0,111950.0,0.14195973]
[1760141975559,0.17862564,111970.0,111950.0,0.00046973]
[1760141975757,0.48524534,111960.0,111950.0,0.00046973]
[1760141975974,0.52663528,111960.0,111950.0,0.00046973]
[1760141976151,0.61902528,111960.0,111950.0,0.00046973]
[1760141976356,0.25948012,111960.0,111950.0,0.00046973]
[1760141976755,0.43811534,111960.0,111950.0,0.00046973]
[1760141977189,0.57189528,111960.0,111950.0,0.00046973]
[1760141977752,0.25948012,111960.0,111950.0,0.00046973]
[1760141977899,0.43811534,111960.0,111950.0,0.00046973]
[1760141978099,0.25948012,111960.0,111950.0,0.00046973]
[1760141978724,0.25948012,111960.0,111950.0,0.60093218]
[1760141979482,0.03881012,111960.0,111950.0,0.60093218]
[1760141979619,0.02418126,111960.0,111950.0,0.60093218]
[1760141979821,0.00012,112010.0,111960.0,0.47015189]
[1760141980030,0.00012,112010.0,111980.0,0.0301519]
[1760141980234,0.00012,112010.0,111990.0,0.42750055]
[1760141981396,0.22720587,112010.0,111990.0,0.00046973]
[1760141981598,0.0486433,112010.0,111990.0,0.00046973]
[1760141981925,0.00012,112010.0,112000.0,0.11765245]
[1760141982076,0.00111998,112050.0,112020.0,0.0301519]
[1760141982467,0.00111998,112050.0,112040.0,1.00233323]
[1760141982674,0.00107998,112050.0,112040.0,1.08983378]
[1760141983621,0.00107998,112050.0,112040.0,1.09030351]
[1760141984017,0.00107998,112050.0,112040.0,1.06015161]
[1760141984230,0.00107998,112050.0,112040.0,0.00046973]
[1760141984683,0.21737429,112050.0,112040.0,0.00046973]
[1760141984864,0.18116255,112050.0,112040.0,0.00046973]
[1760141985096,0.03892255,112050.0,112040.0,0.00146973]
[1760141985305,0.03892255,112050.0,112040.0,0.00046973]
[1760141985582,0.03892255,112050.0,112040.0,0.00146973]
[1760141985756,0.31312429,112050.0,112040.0,0.00146973]
[1760141985943,0.31312429,112050.0,112040.0,0.00046973]
[1760141986162,0.33698656,112050.0,112040.0,0.00046973]
[1760141986362,0.03892255,112050.0,112040.0,0.00046973]
[1760141986562,0.00111998,112050.0,112040.0,0.00046973]
[1760141987113,0.31312429,112050.0,112040.0,0.00046973]
[1760141987409,0.13463255,112050.0,112040.0,0.00046973]
[1760141987565,0.31312429,112050.0,112040.0,0.00046973]
[1760141987766,0.31312429,112050.0,112040.0,0.00146973]
[1760141988108,0.33145044,112050.0,112040.0,0.00046973]
[1760141988315,0.35260999,112050.0,112040.0,0.00046973]
[1760141989341,0.35260999,112050.0,111950.0,0.63218133]
[1760141989342,0.00892857,112000.0,111950.0,0.63218133]
[1760141989486,0.28374881,112020.0,111960.0,0.08797055]
[1760141989704,0.02514184,112010.0,111960.0,0.08797055]
[1760141989915,0.31480462,112020.0,111970.0,0.00047]
[1760141990113,0.13626416,112020.0,111980.0,0.08750055]
[1760141990315,0.31480419,112020.0,111980.0,0.08750055]
[1760141990522,0.02514184,112010.0,111980.0,0.08750055]
[1760141991039,0.02514184,112010.0,111980.0,0.08797055]
[1760141991380,0.03999416,112020.0,111980.0,0.08797055]
[1760141991381,0.22746133,112020.0,111980.0,0.08797055]
[1760141991519,0.22746133,112020.0,111980.0,0.08897055]
[1760141991720,0.22746133,112020.0,111980.0,0.08797055]
[1760141991931,0.23636507,112030.0,111990.0,0.0301519]
[1760141992123,0.18746788,112020.0,111990.0,0.11765245]
[1760141992344,0.2837374,112020.0,111990.0,0.11765245]
[1760141992612,0.17857426,112000.0,111980.0,0.001]
[1760141992817,0.17858636,112000.0,111980.0,0.001]
[1760141993013,0.27485636,112000.0,111980.0,0.00147135]
[1760141993492,0.27579514,112010.0,111980.0,0.00147135]
[1760141993747,0.27579514,112010.0,111980.0,0.0889719]
[1760141993748,0.04891,112010.0,111980.0,0.0889719]
[1760141993951,0.04891,112010.0,111980.0,0.0879719]
[1760141994154,0.04891,112010.0,111990.0,0.001]
[1760141994375,0.18750907,112020.0,111990.0,0.11865245]
[1760141994588,0.18750907,112020.0,111990.0,0.11765245]
[1760141994967,0.18750907,112020.0,111980.0,0.03062325]
[1760141994968,4e-05,112010.0,111980.0,0.03062325]
[1760141995162,4e-05,112010.0,111980.0,0.00047135]
[1760141995163,0.09627,112000.0,111980.0,0.00047135]
[1760141995374,0.09627,112000.0,111990.0,0.001]
[1760141995584,4e-05,112010.0,111990.0,0.08850055]
[1760141995793,4e-05,112010.0,112000.0,0.45812245]
[1760141996009,4e-05,112010.0,112000.0,1.09030378]
[1760141997022,4e-05,112010.0,112000.0,1.09130378]
[1760141997222,8e-05,112010.0,112000.0,1.09130378]
[1760141997423,8e-05,112010.0,112000.0,1.09030378]
[1760141997658,8e-05,112010.0,112000.0,1.19030377]
[1760141997830,8e-05,112010.0,112000.0,1.09230378]
[1760141998602,8e-05,112010.0,112000.0,0.72068188]
[1760141998807,8e-05,112010.0,112000.0,0.001]
[1760141999008,0.14526,112010.0,112000.0,0.002]
[1760141999611,0.14526,112010.0,112000.0,0.001]
[1760141999838,0.14526,112010.0,112000.0,0.002]
[1760141999839,0.04899,112010.0,112000.0,0.002]
[1760142000292,0.32381572,112010.0,111980.0,0.00047135]
[1760142000500,8e-05,112010.0,111990.0,0.08750055]
[1760142000855,8e-05,112010.0,112000.0,0.0316219]
[1760142001095,0.00139998,112080.0,112010.0,0.3701519]
[1760142001287,0.00139998,112080.0,112070.0,1.05968188]
[1760142001409,0.00104998,112080.0,112070.0,1.08983378]
[1760142002209,0.00104998,112080.0,112070.0,0.45765245]
[1760142002411,0.00104998,112080.0,112070.0,0.00047135]
[1760142002856,0.27576394,112080.0,112070.0,0.00047135]
[1760142003056,0.31237199,112080.0,112070.0,0.00047135]
[1760142003420,0.33839324,112080.0,112070.0,0.00047135]
[1760142003649,0.00104998,112080.0,112070.0,0.00047135]
[1760142004064,0.00104998,112080.0,112070.0,0.00247135]
[1760142004366,0.00104998,112080.0,112070.0,0.00047135]
[1760142005168,0.00104998,112080.0,112070.0,0.4581238]
[1760142005385,0.00104998,112080.0,112070.0,0.4591238]
[1760142005590,0.00104998,112080.0,112070.0,0.55812379]
[1760142006081,0.0004,112130.0,112080.0,0.0301519]
[1760142006276,0.0004,112130.0,112120.0,1.00233323]
[1760142006510,0.0004,112130.0,112120.0,1.08983378]
[1760142007531,0.0004,112130.0,112120.0,1.09030513]
[1760142007819,0.0004,112130.0,112120.0,1.09130513]
[1760142008259,0.0004,112130.0,112120.0,1.09330513]
[1760142008471,0.0004,112130.0,112120.0,0.4611238]
[1760142008682,0.0004,112130.0,112120.0,1.09330513]
[1760142010824,0.0004,112130.0,112120.0,0.4611238]
[1760142010956,0.18721081,112180.0,112120.0,1.23414513]
[1760142011158,0.00891583,112160.0,112120.0,0.1379219]
[1760142011396,0.00891583,112160.0,112120.0,0.00347135]
[1760142011397,0.22127258,112150.0,112120.0,0.00347135]
[1760142011624,0.17836439,112130.0,112120.0,0.00347135]
[1760142011803,0.17834867,112140.0,112120.0,0.00347135]
[1760142012157,0.04605,112180.0,112130.0,0.71968188]
[1760142012332,0.18716646,112200.0,112140.0,0.43389]
[1760142012500,0.03282965,112200.0,112160.0,0.34]
[1760142012715,0.20516689,112210.0,112170.0,0.21136055]
[1760142012921,17.45695436,112230.0,112170.0,0.21136055]
[1760142013159,17.26169971,112230.0,112220.0,0.65000133]
[1760142013331,17.26169971,112230.0,112220.0,0.20111055]
[1760142013542,17.25078103,112230.0,112220.0,1.17329188]
[1760142013894,17.22303726,112230.0,112220.0,1.17276323]
[1760142014097,16.05766398,112230.0,112220.0,1.52026445]
[1760142014321,15.2077057,112230.0,112220.0,1.65201506]
[1760142014545,14.59099313,112230.0,112220.0,1.3987632]
[1760142014749,14.58240393,112230.0,112220.0,1.27376322]
[1760142014950,14.55290653,112230.0,112220.0,1.30076321]
[1760142015160,14.54306208,112230.0,112220.0,1.29876321]
[1760142015360,14.54177295,112230.0,112220.0,1.29876321]
[1760142015644,14.54177295,112230.0,112220.0,1.33546145]
[1760142015783,14.54177295,112230.0,112220.0,1.33146145]
[1760142015986,14.54177295,112230.0,112220.0,1.23446146]
[1760142016186,14.54177295,112230.0,112220.0,1.23646146]
[1760142016410,14.54177295,112230.0,112220.0,1.33646145]
[1760142016612,14.54177295,112230.0,112220.0,1.17576323]
[1760142016948,14.54177295,112230.0,112220.0,1.27776322]
[1760142017151,14.54177295,112230.0,112220.0,0.73207477]
[1760142017355,14.54177295,112230.0,112220.0,1.27276322]
[1760142017567,14.54177295,112230.0,112220.0,1.35109118]
[1760142017801,14.54177295,112230.0,112220.0,1.33009119]
[1760142018000,14.54177295,112230.0,112220.0,1.2300912]
[1760142018161,14.54177295,112230.0,112220.0,1.32809119]
[1760142018361,14.51407728,112230.0,112220.0,0.8900912]
[1760142018558,14.51407728,112230.0,112220.0,0.86649307]
[1760142018779,14.48803122,112230.0,112220.0,0.83676323]
[1760142018994,14.48803122,112230.0,112220.0,1.17676323]
[1760142019227,14.44471007,112230.0,112220.0,0.83276323]
[1760142019440,14.44471007,112230.0,112220.0,0.83476323]
[1760142019611,14.42841763,112230.0,112220.0,0.64258189]
[1760142019814,14.42841763,112230.0,112220.0,1.17476323]
[1760142020043,14.42841763,112230.0,112220.0,0.73697323]
[1760142020239,14.42841763,112230.0,112220.0,0.00147135]
[1760142020617,14.45906271,112230.0,112220.0,0.00347135]
[1760142020820,14.73115818,112230.0,112220.0,0.00047135]
[1760142021253,0.18715559,112210.0,112170.0,0.02807]
[1760142021561,0.18715559,112210.0,112170.0,0.00047298]
[1760142021562,0.35914085,112200.0,112170.0,0.00047298]
[1760142021687,0.16473759,112200.0,112170.0,0.08797353]
[1760142021887,0.13994,112200.0,112170.0,0.42797353]
[1760142022148,0.13994,112200.0,112170.0,0.00047298]
[1760142022149,0.12612365,112190.0,112170.0,0.00047298]
[1760142022649,0.12612365,112190.0,112180.0,0.01661077]
[1760142022990,0.30439265,112190.0,112180.0,0.01661077]
[1760142023202,0.17828489,112180.0,112170.0,0.00147298]
[1760142023560,0.04605,112200.0,112180.0,0.0172196]
[1760142023754,0.06611939,112190.0,112180.0,0.01738335]
[1760142023978,0.03534427,112190.0,112180.0,0.4448839]
[1760142024176,0.02014644,112190.0,112180.0,0.4448839]
[1760142024368,0.00891106,112220.0,112190.0,0.34729186]
[1760142024570,0.30355074,112220.0,112190.0,0.34729186]
[1760142024779,0.34068968,112220.0,112200.0,0.00708655]
[1760142024983,0.30119577,112220.0,112200.0,0.00708655]
[1760142025189,0.25434642,112210.0,112200.0,0.00708655]
[1760142025392,0.17825311,112200.0,112180.0,0.001]
[1760142025595,0.1852994,112200.0,112170.0,0.00047298]
[1760142025796,0.14986255,112200.0,112190.0,0.01891187]
[1760142025939,0.11890537,112200.0,112190.0,0.01891187]
[1760142026142,0.10574026,112200.0,112190.0,0.01891187]
[1760142026597,0.16130603,112180.0,112170.0,0.00047298]
[1760142026944,0.17828161,112190.0,112170.0,0.00047298]
[1760142026945,0.19921509,112190.0,112170.0,0.00047298]
[1760142027135,0.07509633,112200.0,112180.0,0.0142216]
[1760142027259,0.09041155,112200.0,112180.0,0.0142216]
[1760142027458,0.18718909,112210.0,112180.0,0.0142216]
[1760142027910,0.05496106,112220.0,112180.0,0.0142216]
[1760142028214,0.18674346,112220.0,112190.0,0.34]
[1760142028437,0.04605,112220.0,112200.0,0.0150986]
[1760142028653,0.23318278,112220.0,112200.0,0.0150986]
[1760142028941,14.42841763,112230.0,112210.0,0.08650055]
[1760142029074,14.42841763,112230.0,112220.0,0.34]
[1760142029282,14.42841763,112230.0,112220.0,0.35959054]
[1760142029482,14.40424141,112230.0,112220.0,0.44709109]
[1760142029784,14.35475743,112230.0,112220.0,0.54288109]
[1760142029984,14.33371347,112230.0,112220.0,0.54335407]
[1760142030637,14.33371347,112230.0,112220.0,0.02006352]
[1760142031043,14.33375347,112230.0,112220.0,0.10756407]
[1760142031243,14.28355972,112230.0,112220.0,1.2066873]
[1760142031446,14.25947478,112230.0,112220.0,1.2066873]
[1760142031686,14.23783324,112230.0,112220.0,1.2066873]
[1760142032696,14.21483649,112230.0,112220.0,1.2066873]
[1760142032837,14.21483649,112230.0,112220.0,1.30668729]
[1760142033036,14.11653649,112230.0,112220.0,1.2066873]
[1760142033238,14.11653649,112230.0,112220.0,1.30668729]
[1760142033239,14.09314484,112230.0,112220.0,1.30668729]
[1760142033440,14.09314484,112230.0,112220.0,1.32560461]
[1760142034369,14.09314484,112230.0,112220.0,0.93553539]
[1760142034547,14.09314484,112230.0,112220.0,0.00047298]
[1760142034953,14.36524031,112230.0,112220.0,0.00147298]
[1760142035163,14.36524031,112230.0,112220.0,0.00047298]
[1760142035362,14.18703484,112230.0,112220.0,0.00047298]
[1760142035602,14.36524031,112230.0,112220.0,0.00247298]
[1760142035922,0.17822235,112220.0,112150.0,0.64656133]
[1760142036064,0.04605,112210.0,112160.0,0.08750055]
[1760142036266,0.00050715,112220.0,112160.0,0.10646795]
[1760142036499,0.00050715,112220.0,112160.0,0.76361441]
[1760142036678,0.00050715,112220.0,112170.0,0.00032929]
[1760142036878,0.09389,112210.0,112170.0,0.10646795]
[1760142037163,0.08044453,112200.0,112150.0,0.01438]
[1760142037365,0.07153188,112200.0,112160.0,0.08750055]
[1760142037603,0.07153188,112200.0,112160.0,0.10649857]
[1760142037806,0.2497854,112200.0,112160.0,0.10649857]
[1760142038074,0.07153188,112200.0,112160.0,0.10649857]
[1760142038279,0.04797,112190.0,112160.0,0.01899802]
[1760142038494,0.18720105,112180.0,112130.0,0.05536887]
[1760142038638,0.23515897,112190.0,112140.0,0.08750055]
[1760142038639,0.26064417,112190.0,112140.0,0.08750055]
[1760142038840,0.26064417,112190.0,112160.0,0.001]
[1760142039042,0.09361,112180.0,112160.0,0.001]
[1760142039233,0.25844771,112180.0,112150.0,0.001]
[1760142039588,0.25844771,112180.0,112160.0,0.001]
[1760142039589,0.18720008,112180.0,112160.0,0.001]
[1760142039718,0.00942108,112180.0,112130.0,0.02349513]
[1760142040119,0.00050684,112180.0,112130.0,0.13003209]
[1760142040322,0.00050684,112180.0,112130.0,0.16190583]
[1760142040495,0.00942108,112180.0,112130.0,0.13003209]
[1760142040728,0.17828544,112180.0,112130.0,0.13003209]
[1760142040848,0.24389264,112190.0,112130.0,0.16190583]
[1760142041055,0.24389264,112190.0,112130.0,0.16241267]
[1760142041250,0.12868044,112190.0,112150.0,0.36349513]
[1760142041460,0.12868044,112190.0,112160.0,0.08750055]
[1760142041774,0.12868044,112190.0,112160.0,0.10653696]
[1760142041975,0.03507044,112190.0,112170.0,0.34]
[1760142042176,0.01271066,112190.0,112170.0,0.35903641]
[1760142042382,0.10632066,112190.0,112170.0,0.35903641]
[1760142042583,0.01271066,112190.0,112170.0,0.35903641]
[1760142042801,0.01271066,112190.0,112170.0,0.34]
[1760142043043,0.09361,112180.0,112130.0,0.02225]
[1760142043244,0.04797,112180.0,112170.0,0.00014601]
[1760142043456,0.01271066,112190.0,112170.0,0.00014601]
[1760142043841,0.10632066,112190.0,112170.0,0.00014601]
[1760142044169,0.09361,112180.0,112170.0,0.00014601]
[1760142044373,0.14158,112180.0,112170.0,0.00014601]
[1760142044510,0.31986489,112180.0,112170.0,0.00014601]
[1760142044913,0.18723264,112160.0,112100.0,0.08483887]
[1760142045194,0.04797,112150.0,112110.0,0.08750055]
[1760142045407,0.04797,112150.0,112110.0,0.12334242]
[1760142045670,0.22627081,112170.0,112120.0,0.09975]
[1760142045864,0.22627081,112170.0,112130.0,0.10975055]
[1760142045865,0.04797,112170.0,112130.0,0.10975055]